Cogmind - Beta 13 @@@ ROGUE MODE // 2024.06.13 @ 10:39:18 Player: ZergFTW Result: Destroyed by G-34 Mercenary with Small Laser Performance ------------- Evolutions (1) 500 Regions Visited (3) 600 Robots Destroyed (69) 345 Value Destroyed (1658) 1658 Prototype IDs (0) 0 Alien Tech Used (0) 0 Bonus (89) 89 TOTAL SCORE: 3192 Bonus ------- High Alert Combat Kills 89 Cogmind --------- Core Integrity 0/400 Matter 299/300 Energy 265/265 System Corruption 0% Temperature Cool (6) Movement Rolling (95) Ox1 Location -9/Materials Parts ------- > --- POWER (1) -------- Improved Ion Engine > --- PROPULSION (2) --- Wheel Wheel > --- UTILITY (4) ------ Large Storage Unit Signal Interpreter Seismic Detector > --- WEAPON (2) ------- Katana Axe > --- INVENTORY (15) --- Light Ion Engine Wheel Hover Unit Hover Unit Improved Hover Unit High-capacity Matter Pod (24) Structural Scanner Structural Scanner Visual Processing Unit Hacking Suite Light Cannon Improved Light Cannon Rocket Launcher Mining Laser Maul Peak State ------------ > --- POWER ------------ Improved Ion Engine > --- PROPULSION ------- Wheel Wheel > --- UTILITY ---------- Large Storage Unit Structural Scanner Signal Interpreter Seismic Detector > --- WEAPON ----------- Katana Axe > --- INVENTORY -------- Wheel Hover Unit Improved Hover Unit High-capacity Matter Pod Structural Scanner Structural Scanner Visual Processing Unit Hacking Suite Heavy Assault Rifle Light Cannon Improved Light Cannon Rocket Launcher Mining Laser Maul [Rating: 16] Favorites ----------- Power Light Nuclear Core Engine Light Ion Engine Power Core Light Nuclear Core Propulsion Wheel Wheel Wheel Utility Large Storage Unit Device Structural Scanner Storage Large Storage Unit Processor Signal Interpreter Weapon Grenade Launcher Energy Gun EM Pulse Gun Ballistic Gun Assault Rifle Ballistic Cannon Battle Cannon Launcher Grenade Launcher Special Weapon Mining Laser Impact Weapon Maul Slashing Weapon Katana Build | -11 -10 -10 -9 ------- Run | Yrd Mat Min Mat Slots Evolved 2 | . . . 2 Power . | . . . . Propulsion . | . . . . Utility 2 | . . . 2 Weapon . | . . . . Parts Attached 88 | 7 37 5 39 Power 7 | 1 2 1 3 Engine 5 | 1 . 1 3 Core 2 | . 2 . . Reactor . | . . . . Propulsion 16 | 3 4 1 8 Treads . | . . . . Leg . | . . . . Wheel 16 | 3 4 1 8 Hover . | . . . . Flight . | . . . . Utility 10 | 1 4 1 4 Device 7 | . 3 . 4 Storage 2 | 1 1 . . Processor 1 | . . 1 . Hackware . | . . . . Protection . | . . . . Artifact . | . . . . Weapon 55 | 2 27 2 24 Energy Gun 3 | . 2 . 1 Energy Cannon . | . . . . Ballistic Gun 18 | 2 12 . 4 Ballistic Cannon 1 | . . . 1 Launcher 19 | . 9 2 8 Special Weapon 5 | . 4 . 1 Impact Weapon 4 | . . . 4 Slashing Weapon 5 | . . . 5 Piercing Weapon . | . . . . Special Melee Weapon . | . . . . Unidentified Prototypes . | . . . . Parts Lost 12 | . 1 . 11 Power 3 | . . . 3 Propulsion 5 | . 1 . 4 Utility 2 | . . . 2 Weapon 2 | . . . 2 Highest Loss Streak 5 | . 1 . 5 To Critical Strikes . | . . . . Average Slot Usage (%) 96 | . 98 100 91 Engine 5 | . 1 14 6 Core 5 | . 12 . . Wheel 25 | . 27 28 21 Device 13 | . 13 2 19 Storage 12 | . 14 14 11 Processor 6 | . . 11 11 Energy Gun 1 | . 1 3 . Ballistic Gun 5 | . 10 3 2 Launcher 10 | . 10 21 5 Special Weapon 2 | . 5 . . Impact Weapon 1 | . . . 4 Slashing Weapon 2 | . . . 7 Naked Turns . | . . . . Heaviest Build 36 | 12 31 29 36 Greatest Support 26 | 26 20 20 20 Greatest Overweight (x) 3 | 1 1 1 3 Average Overweight (x) . | . . 1 1 Largest Inventory Capacity 15 | 8 15 15 15 Average Capacity 13 | 7 12 15 15 Most Carried 15 | 6 15 15 15 Average Carried 13 | 3 11 14 14 Final Capacity 15 | 8 15 15 15 Final Carried 15 | 6 15 15 15 Class Distribution -------------------- 42% | Mutant 37% | Scavenger-Mutant 7% | Scavenger-Assassin 7% | Skirmisher 3% | Scavenger-Skirmisher Dominant Class ---------------- Scavenger-Mutant | -10/Materials Mutant | -10/Mines Scavenger-Mutant | -9/Materials Resources | -11 -10 -10 -9 ----------- Run | Yrd Mat Min Mat Matter Collected 1926 | 284 748 113 781 Remotely . | . . . . Salvage Created 1314 | 101 374 137 702 Parts 125 | 8 41 15 61 Haulers Intercepted . | . . . . Recyclers Shooed 1 | . . . 1 Parts Field Recycled . | . . . . Retrieved Matter . | . . . . Parts Self-Destructed . | . . . . Prevented . | . . . . Kills | -11 -10 -10 -9 ------- Run | Yrd Mat Min Mat Combat Hostiles Destroyed 42 | . 12 7 23 Melee 2 | . . . 2 Guns 3 | . 3 . . Cannons 1 | . . . 1 AOE 34 | . 9 7 18 Classes Destroyed 11 | 2 6 . 3 Worker 6 | . 3 . 3 Builder 11 | . 4 . 7 Tunneler 1 | 1 . . . Recycler 1 | 1 . . . Mechanic 1 | . . . 1 Operator 2 | . 1 . 1 Watcher 5 | . 2 . 3 Swarmer 9 | . 2 3 4 Grunt 26 | . 10 4 12 Duelist 1 | . . . 1 Sentry 6 | . . . 6 Best Kill Streak 7 | 2 5 3 7 Combat Bots Only 5 | . 5 3 5 Max Kills in Single Turn 3 | 1 3 3 3 Gunslinging . | . . . . Exploded 3 | . 2 3 3 Melee 1 | . . . 1 Uniques/NPCs Destroyed . | . . . . Combat | -11 -10 -10 -9 -------- Run | Yrd Mat Min Mat Hostile Shots Fired 177 | . 54 6 117 Missed 41 | . 10 1 30 Damage Taken 1840 | . 510 59 1271 Core 546 | . 130 8 408 Absorbed by Shields . | . . . . Regen/Repaired (Parts) 56 | . 56 . . Core Remaining (%) 72 | 100 . 44 . Volleys Fired 104 | 7 58 4 35 Largest 2 | 2 2 2 2 Hottest 100 | 40 100 60 79 Shots Fired 172 | 14 94 8 56 Gun 83 | 14 54 2 13 Cannon 11 | . . . 11 Launcher 56 | . 18 6 32 Special 22 | . 22 . . Kinetic 81 | 14 43 1 23 Thermal 22 | . 22 . . Explosive 56 | . 18 6 32 Electromagnetic 13 | . 11 1 1 Robot Hit Streak 11 | 7 11 7 10 Robot Miss Streak 4 | 2 4 . 2 Penetration Max . | . . . . Secondary Targets . | . . . . Shots Hit Robots 113 | 9 45 4 55 Core Hits 105 | 5 32 12 56 Critical Kills . | . . . . Critical Parts Destroyed 3 | . . . 3 Critical Strikes 4 | . . . 4 Blast 1 | . . . 1 Smash 3 | . . . 3 Melee Attacks 51 | . . . 51 Impact 25 | . . . 25 Slashing 26 | . . . 26 Piercing . | . . . . Sneak Attacks 8 | . . . 8 Combat Hostiles . | . . . . Follow-up Attacks 3 | . . . 3 Damage Inflicted 4660 | 71 1581 344 2664 Guns 614 | 71 445 . 98 Cannons 164 | . . . 164 Explosions 2912 | . 1136 344 1432 Melee 970 | . . . 970 Ramming . | . . . . Kinetic 637 | 71 314 . 252 Thermal 66 | . 66 . . Explosive 2846 | . 1070 344 1432 Electromagnetic 141 | . 131 . 10 Impact 595 | . . . 595 Slashing 375 | . . . 375 Piercing . | . . . . Highest Corruption . | . . . . Average Corruption . | . . . . Corruption Purged . | . . . . Corruption Blocked . | . . . . Overload Shots . | . . . . Overflow Damage 307 | . 4 . 303 Projectiles . | . . . . Explosions 4 | . 4 . . Melee 303 | . . . 303 Knockbacks 5 | . . . 5 Impact 2 | . . . 2 Kinetic 3 | . . . 3 Secondary . | . . . . Self-Inflicted Damage 157 | . 40 . 117 Shots 4 | . 1 . 3 Rammed . | . . . . Targets Rammed . | . . . . Kicked . | . . . . Crushed . | . . . . Highest Temperature 236 | . 236 6 9 Average Temperature 51 | . 54 6 4 Received Heat Transfer 678 | . 210 27 441 Siege Activations . | . . . . Robots Corrupted . | . . . . Combat Hostiles . | . . . . Parts Fried 10 | . . . 10 Impact Corruptions 10 | . . . 10 Robots Melted . | . . . . Combat Hostiles . | . . . . Parts Melted . | . . . . Heat Transferred 100 | . 100 . . Parts Sabotaged . | . . . . Parts Stolen . | . . . . Parts Stripped . | . . . . Power Chain Reactions 1 | . 1 . . Alert | -11 -10 -10 -9 ------- Run | Yrd Mat Min Mat Peak Influence 530 | 10 439 257 530 Initial 30 | . 6 30 22 Average 188 | 4 106 84 347 Maximum Alert Level 2 | . 2 1 2 Low Security (%) 57 | 100 71 92 19 Level 1 24 | . 28 7 30 Level 2 18 | . . . 49 Level 3 . | . . . . Level 4 . | . . . . Level 5 . | . . . . High Security . | . . . . Max Security . | . . . . Squads Dispatched 9 | . 4 . 5 Investigation 3 | . 3 . . Extermination . | . . . . Reinforcement 5 | . 1 . 4 Assault 1 | . . . 1 Garrison . | . . . . Intercept . | . . . . Searches Triggered . | . . . . Construction Impeded 2 | . . . 2 Haulers Reinforced . | . . . . Active Scanning Responses . | . . . . Cargo Convoy Interrupts . | . . . . Stealth | -11 -10 -10 -9 --------- Run | Yrd Mat Min Mat Distress Signals 6 | . 3 . 3 Communications Jammed . | . . . . Distress Signals . | . . . . Times Spotted 72 | . 22 7 43 Peak Tracking Total 8 | . 8 3 4 Tactical Retreats 8 | . 1 . 7 Traps | -11 -10 -10 -9 ------- Run | Yrd Mat Min Mat Traps Triggered 1 | . 1 . . Indirectly . | . . . . Trap Hack Attempts . | . . . . Triggered . | . . . . Disarmed . | . . . . Reprogrammed . | . . . . Reused . | . . . . Traps Extracted . | . . . . Installed . | . . . . Triggered . | . . . . Machines | -11 -10 -10 -9 ---------- Run | Yrd Mat Min Mat Machines Disabled 9 | . 3 1 5 Max in Single Turn 2 | . 1 1 2 Machines Repaired . | . . . . Machines Dismantled . | . . . . Machines Sabotaged . | . . . . Overloaded Fab Kills . | . . . . Hacking | -11 -10 -10 -9 --------- Run | Yrd Mat Min Mat Machines Accessed 13 | . 9 . 4 Terminals 8 | . 6 . 2 Fabricators . | . . . . Repair Stations 2 | . 1 . 1 Recycling Units 2 | . 2 . . Scanalyzers 1 | . . . 1 Garrison Access . | . . . . Total Hacks 41 | . 28 . 13 Successful 29 | . 22 . 7 Failed 12 | . 6 . 6 Catastrophic 1 | . . . 1 Database Lockouts . | . . . . Manual . | . . . . Terminals 24 | . 15 . 9 Fabricators . | . . . . Repair Stations 7 | . 5 . 2 Recycling Units 8 | . 8 . . Scanalyzers 2 | . . . 2 Garrison Access . | . . . . Terminal Hacks 17 | . 12 . 5 Record 3 | . 3 . . Branch Access Points 1 | . 1 . . Emergency Access Points 2 | . 1 . 1 Alert Level 1 | . . . 1 Unreport Threat 2 | . 1 . 1 Locate Traps 4 | . 3 . 1 Dispatch Records 1 | . 1 . . Zone Layout 3 | . 2 . 1 Fabricator Hacks . | . . . . Repair Station Hacks 5 | . 5 . . Scan Component 3 | . 3 . . Repair 2 | . 2 . . Recycling Unit Hacks 5 | . 5 . . Process 1 | . 1 . . Report Inventory 4 | . 4 . . Scanalyzer 2 | . . . 2 Insert Component 1 | . . . 1 Analyze 1 | . . . 1 Garrison Access Hacks . | . . . . Unauthorized Hacks . | . . . . Terminals . | . . . . Fabricators . | . . . . Repair Stations . | . . . . Recycling Units . | . . . . Scanalyzers . | . . . . Garrison Access . | . . . . Data Cores Recovered . | . . . . Used . | . . . . Hacking Detections 11 | . 9 . 2 Full Trace Events 5 | . 5 . . Feedback Events . | . . . . Feedback Blocked . | . . . . Robot Schematics Acquired . | . . . . Robots Built . | . . . . Authchips . | . . . . Time . | . . . . Total Robot Build Rating . | . . . . Part Schematics Acquired 1 | . . . 1 Parts Built . | . . . . Authchips . | . . . . Time . | . . . . Total Part Build Rating . | . . . . Parts Repaired 2 | . 2 . . Time 64 | . 64 . . Parts Recycled . | . . . . Recycled Matter 35 | . 35 . . Retrieved Matter . | . . . . Retrieved Components . | . . . . Parts Scanalyzed 1 | . . . 1 Part Schematics Acquired 1 | . . . 1 Parts Damaged . | . . . . Bothacking | -11 -10 -10 -9 ------------ Run | Yrd Mat Min Mat Used RIF Installer . | . . . . Robots Hacked . | . . . . Non-combat . | . . . . Combat . | . . . . Robot Hacks Applied . | . . . . Relay Couplers Released . | . . . . Fabnet Peak Effective % . | . . . . Robots Rewired . | . . . . Allies Hacked . | . . . . Hacks Repelled . | . . . . Allies | -11 -10 -10 -9 -------- Run | Yrd Mat Min Mat Total Allies . | . . . . Largest Group . | . . . . Highest-Rated Group . | . . . . Highest-Rated Ally . | . . . . Total Orders . | . . . . Ally Attacks . | . . . . Total Damage . | . . . . Kills . | . . . . Allies Corrupted . | . . . . Allies Melted . | . . . . Intel | -11 -10 -10 -9 ------- Run | Yrd Mat Min Mat Robot Analysis Total . | . . . . Derelict Logs Recovered 1 | . . 1 . Drone Launches . | . . . . Drone Recoveries . | . . . . Exploration | -11 -10 -10 -9 ------------- Run | Yrd Mat Min Mat Turns Passed 3804 | 78 1564 765 1397 Spaces Moved 3146 | 55 1247 738 1106 Core 18 | 18 . . . Treads . | . . . . Legs . | . . . . Wheels 3128 | 37 1247 738 1106 Hover . | . . . . Flight . | . . . . Fastest Speed 50 | 50 80 95 95 Average Speed 93 | 75 91 95 95 Slowest Speed 125 | 100 95 95 125 Overloaded Moves . | . . . . Propulsion Burnouts . | . . . . Robots Hopped . | . . . . Cave-ins Triggered . | . . . . Exploration Rate (%) 61 | 4 96 96 51 Regions Visited 3 Branch Regions 1 Pre-discovered Areas . | . . . . Known Exits Taken 2 | . 1 1 . Unknown Exits Taken 1 | 1 . . . Scrap Searched 1 | . . 1 . Spaces Dug 39 | . 21 . 18 Terrain Destroyed 273 | . 85 50 138 Melee 18 | . . . 18 Projectile 21 | . 21 . . AOE 234 | . 64 50 120 Terrain Rammed . | . . . . Walls Destroyed . | . . . . Machines Disabled . | . . . . Actions | -11 -10 -10 -9 --------- Run | Yrd Mat Min Mat Total 3700 | 79 1528 792 1301 Wait 248 | . 156 40 52 Move 3143 | 54 1246 737 1106 Hop . | . . . . Pick Up 50 | 11 18 3 18 Fast Attach 6 | 1 3 . 2 Attach 15 | 5 . . 10 Detach . | . . . . Swap 67 | 1 34 5 27 Drop 26 | . 13 3 10 Fire 104 | 7 58 4 35 Melee 41 | . . . 41 Ram . | . . . . Kick . | . . . . Crush . | . . . . Escape Stasis . | . . . . Rewire . | . . . . Trap . | . . . . Miscellaneous . | . . . . Route ------- -11/Scrapyard -10/Materials (discovered 5 exits: *Mat x3 / *Min x2) -10/Mines (discovered 3 exits: *Mat x2 / [*Sub]) -9/Materials (discovered 2 exits: *Mat x2) History --------- Turn | Location | Event 8 | -11/Scrapyard | Discovered new exit (range 16) 79 | -11/Scrapyard | Entered Materials 157 | -10/Materials | Discovered new exit (range 13) 256 | -10/Materials | Discovered new exit (range 14) 334 | -10/Materials | Build established: Mutant 371 | -10/Materials | Repaired Lgt. Nuclear Core 399 | -10/Materials | Repaired Mining Laser 451 | -10/Materials | Discovered new exit (range 9) 785 | -10/Materials | Discovered new exit (range 10) 813 | -10/Materials | Build established: Scavenger-Mutant 970 | -10/Materials | Discovered new exit (range 5) 1119 | -10/Materials | Identified exit to Mines 1624 | -10/Materials | Core integrity fell below 50% 1643 | -10/Materials | Entered Mines 1663 | -10/Mines | A weapon hastily lodged in a ceiling crevice suddenly fell to the ground 1725 | -10/Mines | Discovered new exit (range 15) 1726 | -10/Mines | YI-UF0 nonchalantly dropped a Grenade Launcher on the ground 1764 | -10/Mines | Discovered new exit (range 10) 1772 | -10/Mines | Identified exit to Materials 1791 | -10/Mines | Build established: Mutant 1822 | -10/Mines | Found a hidden stash of uninstalled traps 2170 | -10/Mines | Discovered new exit (range 4) 2408 | -10/Mines | Entered Materials 2408 | -9/Materials | Evolved 2 slots: Utility x2 2784 | -9/Materials | Discovered new exit (range 12) 2795 | -9/Materials | Identified exit to Materials 3211 | -9/Materials | Discovered exit to Materials (range 13) 3240 | -9/Materials | Core integrity fell below 50% 3280 | -9/Materials | Core integrity fell below 20% 3290 | -9/Materials | Lost 5 parts (1p3n1u) 3608 | -9/Materials | First assault squad dispatched 3779 | -9/Materials | Build established: Scavenger-Mutant 3805 | -9/Materials | Destroyed by G-34 Mercenary with Small Laser Last Messages --------------- 03608_ ALERT: Significant disruption in Zone 1W, assault force dispatched. 03613_ Sneak attack on O-16 Technician. 03613_ O-16 Technician destroyed. 03618_ Acquired Hacking Suite. 03620_ Acquired 20 matter. 03623_ Acquired Lgt. Ion Engine. 03625_ Dropped Hvy. Assault Rifle. 03626_ Acquired Hover Unit. 03627_ Acquired 4 matter. 03660_ C-30 ARC bursts open, deploying its payload. 03660_ G-47 Trooper unfolds itself. 03660_ B-36 Bruiser unfolds itself. 03660_ G-34 Mercenary unfolds itself. 03660_ M-13 Machinist unfolds itself. 03786_ W-16 Scout sends out distress signal. 03794_ Destroyed Hover Unit. 03794_ Katana follow-up attack on W-16 Scout. 03799_ Structural Scanner destroyed. 03801_ Destroyed Hover Unit. 03801_ W-16 Scout destroyed. Map ----- +----------------------------------------------------+ | #??############# ####### #####""# ###* | | #??##########?## ^^ ### | | #?????????????## ^^ + | | #?????????????## ######## ### | | #?????????????## ####### ######### ###### | | #?????????????#### ### ** ### ###????### ###### | | #?????????????#### ### ** ### ########## ### # | | #####???????????## ##? ** ### ########## ### # | | #####???????????##+##? ### ## T ## ###### | | ##??????????? ??! ### ## # | | ##????????????????? ### ## " ! | | ##?????????????? ## ### ## #! " % | | ##?????????????? ####+### # # | | # ????????????"" # # """ # " | | # ????????????"" + [ + """ # | | ? # ?????????????? # # """ # | | ? # ?????????????? # " # # | | ? # ?????????????? # " # """ # | | ? # ?????????????? # ^ " # """ # | | # ?????????????? # ^ ^ # """ # | | # ??????????????## # #!! | | # ######### ;## ####!! | | #####+############ ########! " | | k u " " ########" " | | g !! %" | | g *%@ " | | ############## | | ############### ###+########## | | """ """ ##??? #### # = ######## | | """"""""" ##???????????##!!!! /# "" ##?????? | | """"" ???????????##!!!!//# ""S ##?????? | | ????????????######### "" ##?????? | | ???????????######### ##?????? | | #################??????????????????## ##?????? | | #########??????????????????## ##?????? | | ##?????????????????????????#########?????? | | ##?????????????????????????# ##?????? | | ##???????????????????????????????????????? | | ##???????????????????????????????????????? | | ##???????????????????????????????????????? | | ##???????????????????????????????????????? | | ##???????????????????????????????????????? | | ##########???????????????????????????????????????? | | ##########???????????????????????????????????????? | | ?????????????????????????????????????????????????? | | ?????????????????????????????????????????????????? | | ?????????????????????????????????????????????????? | | ?????????????????????????????????????????????????? | | ?????????????????????????????????????????????????? | | ?????????????????????????????????????????????????? | +----------------------------------------------------+ Best States ------------- Heat Dissipation 28 Energy Generation 14 Energy Capacity 265 Matter Stores 300 Matter Capacity 300 Sight Range 16 Robot Scan Range 14 Terrain Scan Density 10 Evasion (%) 50 Item Schematics ----------------- Lgt. Nuclear Core | -9/Materials | Scanalyzed Robot Schematics ------------------ None Fabricated ------------ Nothing Alien Tech Used ----------------- None Achievements -------------- Let's See Who's Tougher Challenges ------------ None Game ------ Seed PhasingCoilNetwork Manual? 0 Play Time 01:08:15 Cumulative 18.2 hours Start 2024.06.12 @ 23:23:56 End 2024.06.13 @ 10:39:18 Sessions 3 Manual Loads 0 Difficulty Rogue Special Mode None Game No. 15 Rogue 14 Adventurer 1 Explorer 0 Win Type - Total 0 Types 0/0/0/0/0/0/0/0/0 Lore% 14 Gallery% 10 Achievement% 16 Wizard Run 0 Options --------- Layout 1 ASCII 0 Keyboard 0 Movement Mouse Keybinds 0 Fullscreen 1 Font 24/Proggy Map View 76x35 Zoom Use 0% Tactical HUD 1 Map Filters NONE Filters NONE Steam 1 RUN: 97a1ea52-0fd8-4956-ad2a-bf3b506cf6e2